Cogmind - Beta 13 @@@ ROGUE MODE // 2024.04.07 @ 20:29:44 Player: Evilsquid Result: Self-destructed Performance ------------- Evolutions (0) 0 Regions Visited (4) 800 Robots Destroyed (23) 115 Value Destroyed (417) 417 Prototype IDs (2) 40 Alien Tech Used (0) 0 Bonus (0) 0 TOTAL SCORE: 1372 Bonus ------- None Cogmind --------- Core Integrity 20/250 Matter 286/300 Energy 160/160 System Corruption 4% Temperature Cool (10) Movement Treading (160) Location -9/Mines Parts ------- > --- POWER (1) -------- Light Nuclear Core > --- PROPULSION (2) --- Light Treads Light Treads (fused) > --- UTILITY (2) ------ Large Storage Unit Light Armor Plating > --- WEAPON (2) ------- Light Assault Rifle (fused) Light Assault Rifle > --- INVENTORY (15) --- Ion Engine High-capacity Battery (250) High-capacity Matter Pod (200) Structural Scanner Experimental Sensor Array Signal Interpreter Improved Terrain Scanner Terrain Scan Processor Thief Drone Bay (3/3) Beam Cannon Beam Cannon Light Assault Rifle Grenade Launcher Datajack Peak State ------------ > --- POWER ------------ Light Nuclear Core > --- PROPULSION ------- Light Treads Light Treads > --- UTILITY ---------- Large Storage Unit Experimental Sensor Array > --- WEAPON ----------- Light Assault Rifle Light Assault Rifle > --- INVENTORY -------- Ion Engine High-capacity Battery High-capacity Matter Pod Structural Scanner Sensor Array Signal Interpreter Improved Terrain Scanner Terrain Scan Processor Thief Drone Bay Beam Cannon Beam Cannon Light Assault Rifle Grenade Launcher Datajack [Rating: 19] Favorites ----------- Power Ion Engine Engine Ion Engine Power Core Light Nuclear Core Propulsion Light Treads Treads Light Treads Leg Aluminum Leg Utility Large Storage Unit Device Structural Scanner Storage Large Storage Unit Processor Targeting Computer Protection Light Armor Plating Weapon Light Assault Rifle Energy Gun Small Laser Energy Cannon Beam Cannon Ballistic Gun Light Assault Rifle Build | -11 -10 -10 -10 -9 ------- Run | Yrd Mat Min Exi Min Slots Evolved . | . . . . . Power . | . . . . . Propulsion . | . . . . . Utility . | . . . . . Weapon . | . . . . . Parts Attached 29 | 6 16 5 1 1 Power 6 | 1 4 1 . . Engine 5 | 1 4 . . . Core 1 | . . 1 . . Reactor . | . . . . . Propulsion 6 | 2 4 . . . Treads 4 | 2 2 . . . Leg 2 | . 2 . . . Wheel . | . . . . . Hover . | . . . . . Flight . | . . . . . Utility 9 | 1 3 4 . 1 Device 3 | . 1 2 . . Storage 3 | 1 1 1 . . Processor 1 | . . 1 . . Hackware . | . . . . . Protection 2 | . 1 . . 1 Artifact . | . . . . . Weapon 8 | 2 5 . 1 . Energy Gun 1 | 1 . . . . Energy Cannon 2 | . 2 . . . Ballistic Gun 5 | 1 3 . 1 . Ballistic Cannon . | . . . . . Launcher . | . . . . . Special Weapon . | . . . . . Impact Weapon . | . . . . . Slashing Weapon . | . . . . . Piercing Weapon . | . . . . . Special Melee Weapon . | . . . . . Unidentified Prototypes 2 | . . 2 . . Parts Lost 2 | . 2 . . . Power . | . . . . . Propulsion 1 | . 1 . . . Utility 1 | . 1 . . . Weapon . | . . . . . Highest Loss Streak 2 | . 2 . . . To Critical Strikes . | . . . . . Average Slot Usage (%) 87 | . 87 97 85 87 Engine 7 | . 14 8 . . Core 6 | . . 5 14 14 Treads 24 | . 19 28 28 28 Leg 2 | . 5 . . . Device 1 | . 1 7 . . Storage 14 | . 14 14 14 14 Protection 1 | . 2 . . 2 Energy Cannon 2 | . 6 . . . Ballistic Gun 24 | . 20 28 28 28 Naked Turns . | . . . . . Heaviest Build 34 | 12 34 31 27 30 Greatest Support 40 | 40 40 40 40 40 Greatest Overweight (x) 8 | . 8 . . . Average Overweight (x) . | . . . . . Largest Inventory Capacity 15 | 8 15 15 15 15 Average Capacity 13 | 7 11 15 15 15 Most Carried 15 | 3 15 15 14 14 Average Carried 11 | 1 10 14 14 14 Final Capacity 15 | 8 15 15 15 15 Final Carried 15 | 3 15 14 14 14 Class Distribution -------------------- 62% | Scavenger-Mutant 37% | Mutant Dominant Class ---------------- Mutant | -10/Materials Scavenger-Mutant | -10/Mines Scavenger-Mutant | -10/Exiles Scavenger-Mutant | -9/Mines Resources | -11 -10 -10 -10 -9 ----------- Run | Yrd Mat Min Exi Min Matter Collected 782 | 229 295 187 . 71 Remotely . | . . . . . Salvage Created 608 | 39 381 136 . 52 Parts 50 | 3 33 8 . 6 Haulers Intercepted 1 | . 1 . . . Recyclers Shooed 1 | . 1 . . . Parts Field Recycled . | . . . . . Retrieved Matter . | . . . . . Parts Self-Destructed . | . . . . . Prevented . | . . . . . Kills | -11 -10 -10 -10 -9 ------- Run | Yrd Mat Min Exi Min Combat Hostiles Destroyed 17 | . 9 5 . 3 Guns 17 | . 9 5 . 3 Classes Destroyed 6 | 1 5 . . . Builder 1 | . 1 . . . Tunneler 2 | 2 . . . . Hauler 1 | . 1 . . . Watcher 2 | . 2 . . . Swarmer 10 | . 4 3 . 3 Grunt 7 | . 5 2 . . Best Kill Streak 4 | 2 3 4 . 2 Combat Bots Only 4 | . 3 4 . 2 Max Kills in Single Turn 1 | 1 1 1 . 1 Gunslinging . | . . . . . Exploded . | . . . . . Melee . | . . . . . Uniques/NPCs Destroyed . | . . . . . Combat | -11 -10 -10 -10 -9 -------- Run | Yrd Mat Min Exi Min Hostile Shots Fired 138 | . 80 25 . 33 Missed 32 | . 19 6 . 7 Damage Taken 1035 | . 621 214 . 200 Core 230 | . 128 63 . 39 Absorbed by Shields . | . . . . . Core Remaining (%) 100 | 100 . . . . Volleys Fired 101 | 12 61 16 . 12 Largest 2 | 2 2 2 . 2 Hottest 120 | 60 120 40 . 40 Shots Fired 203 | 24 121 34 . 24 Gun 181 | 24 99 34 . 24 Cannon 22 | . 22 . . . Launcher . | . . . . . Special . | . . . . . Kinetic 162 | 12 92 34 . 24 Thermal 41 | 12 29 . . . Explosive . | . . . . . Electromagnetic . | . . . . . Robot Hit Streak 9 | 6 6 9 . 4 Robot Miss Streak 5 | 2 5 2 . 3 Penetration Max . | . . . . . Secondary Targets 1 | . . . . 1 Max Gunslinging Chain 1 | . . . . 1 Shots Hit Robots 109 | 15 58 24 . 12 Core Hits 45 | 3 27 10 . 5 Critical Kills . | . . . . . Critical Parts Destroyed 2 | . 1 1 . . Critical Strikes 2 | . 1 1 . . Destroy 2 | . 1 1 . . Melee Attacks . | . . . . . Impact . | . . . . . Slashing . | . . . . . Piercing . | . . . . . Sneak Attacks . | . . . . . Combat Hostiles . | . . . . . Follow-up Attacks . | . . . . . Damage Inflicted 1067 | 151 607 210 . 99 Guns 905 | 151 445 210 . 99 Cannons 159 | . 159 . . . Explosions . | . . . . . Melee . | . . . . . Ramming 3 | . 3 . . . Kinetic 755 | 65 381 210 . 99 Thermal 309 | 86 223 . . . Explosive . | . . . . . Electromagnetic . | . . . . . Impact . | . . . . . Slashing . | . . . . . Piercing . | . . . . . Highest Corruption 4 | . 4 4 4 4 Average Corruption 3 | . 3 4 4 4 Corruption Purged . | . . . . . Corruption Blocked . | . . . . . Effects 56 | . 26 4 22 4 Message Errors 18 | . 8 . 9 1 Matter Fused 8 | . 3 1 3 1 Heat Flow Errors 1 | . 1 . . . Energy Discharges 4 | . 3 . . 1 Parts Fused 2 | . 1 . 1 . Data Loss (minor) 9 | . 5 . 4 . Data Loss (major) 4 | . 1 1 2 . Misfires 5 | . 3 2 . . Alerts 4 | . . . 3 1 Weapon Failures 1 | . 1 . . . Overload Shots . | . . . . . Overflow Damage . | . . . . . Projectiles . | . . . . . Explosions . | . . . . . Melee . | . . . . . Knockbacks . | . . . . . Impact . | . . . . . Kinetic . | . . . . . Secondary . | . . . . . Self-Inflicted Damage . | . . . . . Shots . | . . . . . Rammed 1 | . 1 . . . Targets Rammed 1 | . 1 . . . Kicked . | . . . . . Crushed . | . . . . . Highest Temperature 620 | 40 620 20 . 10 Average Temperature 153 | 20 246 7 . 4 Received Heat Transfer 327 | . 237 90 . . Effects 19 | . 19 . . . Shutdowns 5 | . 5 . . . Energy Bleed 1 | . 1 . . . Interference 2 | . 2 . . . Matter Decay 4 | . 4 . . . Damage (minor) 2 | . 2 . . . Damage (major) 5 | . 5 . . . Siege Activations . | . . . . . Robots Corrupted . | . . . . . Combat Hostiles . | . . . . . Parts Fried . | . . . . . Impact Corruptions . | . . . . . Robots Melted . | . . . . . Combat Hostiles . | . . . . . Parts Melted . | . . . . . Heat Transferred 683 | 200 483 . . . Parts Sabotaged . | . . . . . Parts Stolen . | . . . . . Parts Stripped . | . . . . . Power Chain Reactions . | . . . . . Alert | -11 -10 -10 -10 -9 ------- Run | Yrd Mat Min Exi Min Peak Influence 215 | 10 215 176 . 100 Initial 41 | . 6 41 . . Average 62 | 1 57 96 . 61 Maximum Alert Level 1 | . 1 . . . Low Security (%) 95 | 100 92 100 . 100 Level 1 4 | . 7 . . . Level 2 . | . . . . . Level 3 . | . . . . . Level 4 . | . . . . . Level 5 . | . . . . . High Security . | . . . . . Max Security . | . . . . . Squads Dispatched 1 | . 1 . . . Investigation . | . . . . . Extermination . | . . . . . Reinforcement 1 | . 1 . . . Assault . | . . . . . Garrison . | . . . . . Intercept . | . . . . . Searches Triggered . | . . . . . Construction Impeded . | . . . . . Haulers Reinforced . | . . . . . Active Scanning Responses . | . . . . . Cargo Convoy Interrupts . | . . . . . Stealth | -11 -10 -10 -10 -9 --------- Run | Yrd Mat Min Exi Min Distress Signals 2 | . 2 . . . Communications Jammed . | . . . . . Distress Signals . | . . . . . Times Spotted 38 | . 25 6 . 7 Peak Tracking Total 4 | . 4 3 . 4 Tactical Retreats 7 | . 5 1 . 1 Traps | -11 -10 -10 -10 -9 ------- Run | Yrd Mat Min Exi Min Traps Triggered 2 | . 2 . . . Indirectly . | . . . . . Trap Hack Attempts . | . . . . . Triggered . | . . . . . Disarmed . | . . . . . Reprogrammed . | . . . . . Reused . | . . . . . Traps Extracted . | . . . . . Installed . | . . . . . Triggered . | . . . . . Machines | -11 -10 -10 -10 -9 ---------- Run | Yrd Mat Min Exi Min Machines Disabled . | . . . . . Max in Single Turn . | . . . . . Machines Repaired . | . . . . . Machines Dismantled . | . . . . . Machines Sabotaged . | . . . . . Overloaded Fab Kills . | . . . . . Hacking | -11 -10 -10 -10 -9 --------- Run | Yrd Mat Min Exi Min Machines Accessed 5 | . 1 1 3 . Terminals 1 | . 1 . . . Fabricators . | . . . . . Repair Stations . | . . . . . Recycling Units . | . . . . . Scanalyzers . | . . . . . Garrison Access . | . . . . . Total Hacks 9 | . 5 1 3 . Successful 8 | . 4 1 3 . Failed 1 | . 1 . . . Catastrophic 1 | . 1 . . . Database Lockouts . | . . . . . Manual 4 | . 4 . . . Terminals 5 | . 5 . . . Fabricators . | . . . . . Repair Stations . | . . . . . Recycling Units . | . . . . . Scanalyzers . | . . . . . Garrison Access . | . . . . . Terminal Hacks 7 | . 3 1 3 . Record 3 | . . . 3 . Open Door 1 | . . 1 . . Branch Access Points 1 | . 1 . . . Alert Level 1 | . 1 . . . Registered Components 1 | . 1 . . . Fabricator Hacks . | . . . . . Repair Station Hacks . | . . . . . Recycling Unit Hacks . | . . . . . Scanalyzer . | . . . . . Garrison Access Hacks . | . . . . . Unauthorized Hacks 1 | . 1 . . . Terminals 1 | . 1 . . . Botnet 1 | . 1 . . . Fabricators . | . . . . . Repair Stations . | . . . . . Recycling Units . | . . . . . Scanalyzers . | . . . . . Garrison Access . | . . . . . Data Cores Recovered . | . . . . . Used . | . . . . . Hacking Detections 1 | . 1 . . . Full Trace Events 1 | . 1 . . . Feedback Events . | . . . . . Feedback Blocked . | . . . . . Robot Schematics Acquired . | . . . . . Robots Built . | . . . . . Authchips . | . . . . . Time . | . . . . . Total Robot Build Rating . | . . . . . Part Schematics Acquired . | . . . . . Parts Built . | . . . . . Authchips . | . . . . . Time . | . . . . . Total Part Build Rating . | . . . . . Parts Repaired . | . . . . . Time . | . . . . . Parts Recycled . | . . . . . Recycled Matter . | . . . . . Retrieved Matter . | . . . . . Retrieved Components . | . . . . . Parts Scanalyzed . | . . . . . Part Schematics Acquired . | . . . . . Parts Damaged . | . . . . . Bothacking | -11 -10 -10 -10 -9 ------------ Run | Yrd Mat Min Exi Min Used RIF Installer . | . . . . . Robots Hacked . | . . . . . Non-combat . | . . . . . Combat . | . . . . . Robot Hacks Applied . | . . . . . Relay Couplers Released . | . . . . . Fabnet Peak Effective % . | . . . . . Robots Rewired . | . . . . . Allies Hacked . | . . . . . Hacks Repelled . | . . . . . Allies | -11 -10 -10 -10 -9 -------- Run | Yrd Mat Min Exi Min Total Allies . | . . . . . Largest Group . | . . . . . Highest-Rated Group . | . . . . . Highest-Rated Ally . | . . . . . Total Orders . | . . . . . Ally Attacks . | . . . . . Total Damage . | . . . . . Kills . | . . . . . Allies Corrupted . | . . . . . Allies Melted . | . . . . . Intel | -11 -10 -10 -10 -9 ------- Run | Yrd Mat Min Exi Min Robot Analysis Total . | . . . . . Derelict Logs Recovered 2 | . . . . 2 Drone Launches . | . . . . . Drone Recoveries . | . . . . . Exploration | -11 -10 -10 -10 -9 ------------- Run | Yrd Mat Min Exi Min Turns Passed 3045 | 131 1327 398 957 232 Spaces Moved 1595 | 55 611 211 598 120 Core 2 | 1 1 . . . Treads 1474 | 54 491 211 598 120 Legs 119 | . 119 . . . Wheels . | . . . . . Hover . | . . . . . Flight . | . . . . . Fastest Speed 50 | 50 160 160 160 160 Average Speed 167 | 158 179 160 160 160 Slowest Speed 450 | 160 450 160 160 160 Overloaded Moves . | . . . . . Propulsion Burnouts . | . . . . . Robots Hopped . | . . . . . Cave-ins Triggered . | . . . . . Exploration Rate (%) 48 | 4 72 47 93 28 Regions Visited 4 Branch Regions 3 Pre-discovered Areas 1 | . . . . 1 Known Exits Taken 1 | . 1 . . . Unknown Exits Taken 3 | 1 . 1 1 . Scrap Searched 2 | . . 1 . 1 Spaces Dug . | . . . . . Terrain Destroyed . | . . . . . Melee . | . . . . . Projectile . | . . . . . AOE . | . . . . . Terrain Rammed . | . . . . . Walls Destroyed . | . . . . . Machines Disabled . | . . . . . Actions | -11 -10 -10 -10 -9 --------- Run | Yrd Mat Min Exi Min Total 1801 | 75 741 247 598 140 Wait 31 | . 18 6 . 7 Move 1591 | 54 610 210 597 120 Hop . | . . . . . Pick Up 25 | 3 19 3 . . Fast Attach 17 | 6 8 2 . 1 Attach 1 | . 1 . . . Detach 2 | . 1 1 . . Swap 11 | . 7 3 1 . Drop 21 | . 15 6 . . Fire 101 | 12 61 16 . 12 Melee . | . . . . . Ram . | . . . . . Kick . | . . . . . Crush 1 | . 1 . . . Escape Stasis . | . . . . . Rewire . | . . . . . Trap . | . . . . . Miscellaneous . | . . . . . Route ------- -11/Scrapyard -10/Materials (discovered 4 exits: [*Mat x2] / *Min x2) -10/Mines (discovered 2 exits: [*Mat] / *Exi) -10/Exiles (discovered 2 exits: [*Min x2]) -9/Mines (discovered 1 exit: [*Mat]) History --------- Turn | Location | Event 51 | -11/Scrapyard | Discovered new exit (range 14) 132 | -11/Scrapyard | Entered Materials 200 | -10/Materials | Identified exit to Mines 303 | -10/Materials | Build established: Mutant 672 | -10/Materials | Discovered new exit (range 12) 1107 | -10/Materials | Core integrity fell below 50% 1264 | -10/Materials | Discovered new exit (range 14) 1458 | -10/Materials | Build established: Scavenger-Mutant 1459 | -10/Materials | Entered Mines 1463 | -10/Mines | Met a Derelict bent on vengeance 1475 | -10/Mines | Found the Drone Emporium 1481 | -10/Mines | Found Prototype Device 1481 | -10/Mines | Identified Thief Drone Bay 1704 | -10/Mines | Discovered new exit (range 6) 1734 | -10/Mines | Found a damaged Exp. Sensor Array with a note attached 1738 | -10/Mines | Found Prototype Device 1764 | -10/Mines | Identified Exp. Sensor Array 1849 | -10/Mines | Deemed a non-threat by the Exiles lab entrance 1850 | -10/Mines | Discovered new exit (range 5) 1857 | -10/Mines | Entered Exiles 1857 | -10/Exiles | Found Exiles lab abandoned 2283 | -10/Exiles | Discovered new exit (range 14) 2757 | -10/Exiles | Discovered new exit (range 14) 2814 | -10/Exiles | Entered Mines 2814 | -9/Mines | Discovered new exit (range 14) 2829 | -9/Mines | Learned 4 Materials zone layouts 2858 | -9/Mines | Learned location of Recycling (-9) 2899 | -9/Mines | Core integrity fell below 20% 3046 | -9/Mines | Self-destructed Last Messages --------------- 02892_ Acquired 18 matter. 02918_ S-10 Pest destroyed. 02918_ Switching to secondary target: S-10 Pest. 02921_ S-10 Pest destroyed. 02924_ Acquired 20 matter. 02925_ Acquired 14 matter. 02926_ R-06 Scavenger collects Flight Unit. 02928_ K-01 Serf collects debris. 02930_ R-06 Scavenger collects Unknown Engine. 02932_ K-01 Serf collects debris. 02962_ System corrupted: Energy discharge (-43). 02978_ QRU#RSWG#SQHEXKTOMZFS 03004_ Searching scrap... 03004_ Found Lgt. Armor Plating. 03004_ Found Disposable Heat Sink. 03004_ Found 19 Matter. 03005_ Acquired 12 matter. 03006_ System corrupted: Matter fused (-9). 03007_ Acquired Lgt. Armor Plating. 03008_ Acquired 7 matter. Map ----- +----------------------------------------------------+ | ?????????????????????????????????? | | ?????????????????????????????????? | | ?????????????????????????????????? | | ?????????????????????????????????? | | ?????????????????????????????????? | | ?????????????????????????????????? | | ?????????????????????????????????? | | ?????????????????????????????????? | | ?????????????????????????????????? | | ?????????????????????????????????? | | ?????????????????????????????????? | | ?????????????????????????????????? | | ?????????????????????????????????? | | ?????????????????????????????????? | | ?????????????????????????????????? | | ?????????????????????????????????? | | ?????????????????????????????????? | | ?????????????????????????????????? | | ?????????????????????????????????? | | ?????????????????????????????????? | | ?????????????????????????????????? | | ?????????????????????????????????? | | ?? ?????????????????????????????? | | ?# ""?????????????#####?????????? | | ?# """s############ ??????????? | | ?# """ s@ ## #???????????? | | ?# s ######### ## #???????????? | | ??####??????????# ## #???????????? | | ????????????????# ##!#???????????? | | ????????????????# #???????????? | | ????????????????# ###???????????# | | ????????????????# #?????????????# | | ????????????????# #?????????????# | | ??????????????### #????????????## | | ?????????###### #????????????# | | ????????## ## #???????????## | | ????????# #?????????### | | ????????# ##????????## | | ????????## ####?????##### "" | | ????????## ##???#????# "" | | ????????# ##??# ????# "" | | ??####?## #?? ????# ### | | ?## ### #?# ????# #?##### | | ?# ##? ????# #?????# | | ?# ## ##?? ???## #?????? | | ?# #######???# ???# #?###?? | | ?# ##?????????# #???# ### ### | | ?## #??????????# #???# #### | | ??# ##?????????# #?### #??# | | ?## ##????????# ### #### | +----------------------------------------------------+ Best States ------------- Heat Dissipation 25 Energy Generation 14 Energy Capacity 250 Matter Stores 300 Matter Capacity 300 Sight Range 16 Robot Scan Range 20 Terrain Scan Density 10 Armor Coverage 150 Evasion (%) 40 Targeting Accuracy 5 Recoil Reduction 2 Item Schematics ----------------- None Robot Schematics ------------------ None Fabricated ------------ Nothing Alien Tech Used ----------------- None Achievements -------------- None Challenges ------------ None Game ------ Seed SmallStormPrototype Manual? 0 Play Time 00:16:33 Cumulative 44.3 hours Start 2024.04.07 @ 20:14:01 End 2024.04.07 @ 20:29:44 Sessions 1 Manual Loads 0 Difficulty Rogue Special Mode None Game No. 52 Rogue 52 Adventurer 0 Explorer 0 Win Type - Total 0 Types 0/0/0/0/0/0/0/0/0 Lore% 20 Gallery% 37 Achievement% 32 Wizard Run 0 Options --------- Layout 0 ASCII 0 Keyboard 0 Movement Mouse Keybinds 0 Fullscreen 2 Font 24/Smallcaps Map View 76x50 Zoom Use 0% Tactical HUD 1 Map Filters NONE Filters NONE Steam 1 RUN: dcdbbae1-0c2e-4a1c-ab42-080b104f65c8